fUST/lending_fUST_20240131
["ID","MTS","AMOUNT","RATE_DAILY","PERIOD"]
[313062593,1706706640066,-500.0,0.0002079,2]
[313062594,1706706640075,-686.9,0.0002079,2]
[313062595,1706706640084,-500.0,0.0002079,2]
[313062596,1706706640094,-500.0,0.0002079,2]
[313062597,1706706640104,-500.0,0.0002079,2]
[313062598,1706706640112,-500.0,0.0002079,2]
[313062599,1706706640121,-500.0,0.0002079,2]
[313062600,1706706640130,-500.0,0.0002079,2]
[313062601,1706706640139,-500.0,0.0002079,2]
[313062602,1706706640148,-500.0,0.0002079,2]
[313062603,1706706640157,-378.57526087,0.0002079,2]
[313062604,1706706640166,-500.0,0.0002079,2]
[313062605,1706706640175,-500.0,0.0002079,2]
[313062606,1706706640184,-345.642392,0.0002079,2]
[313062607,1706706640193,-345.642392,0.0002079,2]
[313062608,1706706640201,-500.0,0.0002079,2]
[313062609,1706706640211,-500.0,0.0002079,2]
[313062610,1706706640220,-2110.65,0.0002079,2]
[313062611,1706706640229,-500.0,0.0002079,2]
[313062612,1706706640237,-1692.13,0.0002079,2]
[313062613,1706706640246,-500.0,0.0002079,2]
[313062614,1706706640255,-500.0,0.0002079,2]
[313062615,1706706640264,-500.0,0.0002079,2]
[313062616,1706706640273,-500.0,0.0002079,2]
[313062617,1706706640282,-500.0,0.0002079,2]
[313062618,1706706640291,-701.78,0.0002079,2]
[313062619,1706706640299,-500.0,0.0002079,2]
[313062620,1706706640308,-151.0,0.0002079,2]
[313062621,1706706640316,-151.0,0.0002079,2]
[313062622,1706706640325,-151.0,0.0002079,2]
[313062623,1706706640334,-500.0,0.0002079,2]
[313062624,1706706640343,-1401.79,0.0002079,2]
[313062625,1706706640352,-558.40158265,0.0002079,2]
[313062626,1706706640360,-855.08,0.0002079,2]
[313062627,1706706640371,-796.2,0.0002079,2]
[313062628,1706706640380,-500.0,0.0002079,2]
[313062629,1706706640389,-370.23000767,0.0002079,2]
[313062630,1706706640397,-500.0,0.0002079,2]
[313062631,1706706640406,-200.0,0.0002079,2]
[313062632,1706706640415,-500.0,0.0002079,2]
[313062633,1706706640424,-3358.37,0.0002079,2]
[313062634,1706706640433,-500.0,0.0002079,2]
[313062635,1706706640442,-500.0,0.0002079,2]
[313062636,1706706640451,-500.0,0.0002079,2]
[313062637,1706706640460,-661.11,0.0002079,2]
[313062638,1706706640469,-500.0,0.0002079,2]
[313062639,1706706640479,-500.0,0.0002079,2]
[313062640,1706706640488,-500.0,0.0002079,2]
[313062641,1706706640497,-500.0,0.0002079,2]
[313062642,1706706640506,-977.48,0.0002079,2]
[313062643,1706706640515,-500.0,0.0002079,2]
[313062644,1706706640524,-500.0,0.0002079,2]
[313062645,1706706640533,-230.73943628,0.0002079,2]
[313062646,1706706640542,-500.0,0.0002079,2]
[313062647,1706706640551,-500.0,0.0002079,2]
[313062648,1706706640561,-263.64006513,0.0002079,2]
[313062649,1706706640570,-500.0,0.0002079,2]
[313062650,1706706640579,-1298.25,0.0002079,2]
[313062651,1706706640588,-153.915183,0.0002079,2]
[313062652,1706706640597,-153.915179,0.0002079,2]
[313062653,1706706640606,-5961.97,0.0002079,2]
[313062654,1706706640615,-2211.2,0.0002079,2]
[313062655,1706706640624,-1912.97,0.0002079,2]
[313062656,1706706640633,-500.0,0.0002079,2]
[313062657,1706706640643,-500.0,0.0002079,2]
[313062658,1706706640652,-4883.43,0.0002079,2]
[313062659,1706706640661,-4226.6,0.0002079,2]
[313062660,1706706640670,-643.8,0.0002079,2]
[313062661,1706706640679,-2799.04,0.0002079,2]
[313062662,1706706640688,-833.63,0.0002079,2]
[313062663,1706706640697,-500.0,0.0002079,2]
[313062664,1706706640706,-500.0,0.0002079,2]
[313062665,1706706640715,-500.0,0.0002079,2]
[313062666,1706706640724,-500.0,0.0002079,2]
[313062667,1706706640733,-500.0,0.0002079,2]
[313062668,1706706640742,-2515.94,0.0002079,2]
[313062669,1706706640751,-4190.91,0.0002079,2]
[313062670,1706706640760,-500.0,0.0002079,2]
[313062671,1706706640769,-500.0,0.00020822,2]
[313062672,1706706640778,-500.0,0.00020822,2]
[313062673,1706706640787,-500.0,0.00020822,2]
[313062674,1706706640796,-500.0,0.00020822,2]
[313062675,1706706640806,-500.0,0.00020822,2]
[313062676,1706706640815,-500.0,0.00020822,2]
[313062677,1706706640824,-487.65855313,0.00020822,2]
[313062678,1706706640834,-500.0,0.00020822,2]
[313062679,1706706640843,-500.0,0.00020822,2]
[313062680,1706706640853,-500.0,0.00020822,2]
[313062681,1706706640862,-620.27498651,0.00020822,2]
[313062682,1706706640871,-500.0,0.00020822,2]
[313062683,1706706640881,-500.0,0.00020822,2]
[313062684,1706706640889,-456.16341098,0.00020822,2]
[313062685,1706706640899,-500.0,0.00020822,2]
[313062686,1706706640908,-500.0,0.00020822,2]
[313062687,1706706640917,-500.0,0.00020822,2]
[313062688,1706706640926,-500.0,0.00020822,2]
[313062689,1706706640935,-500.0,0.00020822,2]
[313062690,1706706640944,-500.0,0.00020822,2]
[313062691,1706706640953,-500.0,0.00020822,2]
[313062692,1706706640962,-162.98213789,0.00020822,2]
[313062693,1706706640971,-500.0,0.00020822,2]
[313062694,1706706640981,-500.0,0.00020822,2]
[313062695,1706706640990,-500.0,0.00020822,2]
[313062696,1706706640999,-500.0,0.00020822,2]
[313062697,1706706641008,-500.0,0.00020822,2]
[313062698,1706706641020,-500.0,0.00020822,2]
[313062699,1706706641029,-500.0,0.00020822,2]
[313062700,1706706641038,-500.0,0.00020822,2]
[313062701,1706706641047,-500.0,0.00020822,2]
[313062702,1706706641057,-500.0,0.00020822,2]
[313062703,1706706641066,-500.0,0.00020822,2]
[313062704,1706706641075,-500.0,0.00020822,2]
[313062705,1706706641085,-500.0,0.00020822,2]
[313062706,1706706641095,-500.0,0.00020822,2]
[313062707,1706706641106,-500.0,0.00020822,2]
[313062708,1706706641116,-500.0,0.00020822,2]
[313062709,1706706641125,-500.0,0.00020822,2]
[313062710,1706706641135,-500.0,0.00020822,2]
[313062711,1706706641144,-500.0,0.00020822,2]
[313062712,1706706641153,-500.0,0.00020822,2]
[313062713,1706706641162,-500.0,0.00020822,2]
[313062714,1706706641171,-151.0,0.00020822,2]
[313062715,1706706641180,-151.0,0.00020822,2]
[313062716,1706706641189,-1828.98396681,0.00021,2]
[313062717,1706706641269,-7746.07902853,0.00021,2]
[313062718,1706706641278,-345.642392,0.00021,2]
[313062719,1706706641287,-345.642392,0.00021,2]
[313062720,1706706641296,-151.0,0.00021,2]
[313062721,1706706641307,-13072.26,0.00021052,2]
[313062722,1706706641316,-500.0,0.00021052,2]
[313062723,1706706641325,-1984.69,0.00021052,2]
[313062724,1706706641334,-151.0,0.00021053,2]
[313062725,1706706641343,-26471.17,0.00021053,2]
[313062726,1706706641354,-1146.45,0.00021053,2]
[313062727,1706706641363,-500.0,0.00021053,2]
[313062728,1706706641372,-2185.13,0.00021053,2]
[313062729,1706706641381,-5626.52,0.00021053,2]
[313062730,1706706641390,-2301.26,0.00021053,2]
[313062731,1706706641399,-2030.4,0.00021053,2]
[313062732,1706706641408,-711.43,0.00021054,2]
[313062733,1706706641417,-5798.59,0.00021054,2]
[313062734,1706706641426,-500.0,0.00021054,2]
[313062735,1706706641435,-1242.02,0.00021054,2]
[313062736,1706706641445,-621.96318028,0.00021054,2]
[313062737,1706706641454,-500.0,0.00021054,2]
[313062738,1706706641464,-500.0,0.00021054,2]
[313062739,1706706641474,-2325.17,0.00021054,2]
[313062740,1706706641484,-788.38,0.00021064,2]
[313062741,1706706641494,-500.0,0.00021064,2]
[313062742,1706706641504,-500.0,0.00021064,2]
[313062743,1706706641514,-500.0,0.00021064,2]
[313062744,1706706641523,-686.9,0.00021064,2]
[313062745,1706706641532,-500.0,0.00021064,2]
[313062746,1706706641541,-500.0,0.00021064,2]
[313062747,1706706641550,-500.0,0.00021064,2]
[313062748,1706706641560,-500.0,0.00021064,2]
[313062749,1706706641570,-500.0,0.00021064,2]
[313062750,1706706641581,-525.23108235,0.00021064,2]
[313062751,1706706641590,-346.73219295,0.00021064,2]
[313062752,1706706641600,-500.0,0.00021064,2]
[313062753,1706706641609,-500.0,0.00021064,2]
[313062754,1706706641618,-500.0,0.00021064,2]
[313062755,1706706641627,-345.642392,0.00021064,2]
[313062756,1706706641636,-345.642392,0.00021064,2]
[313062757,1706706641646,-500.0,0.00021064,2]
[313062758,1706706641656,-500.0,0.00021064,2]
[313062759,1706706641665,-2110.65,0.00021064,2]
[313062760,1706706641674,-500.0,0.00021064,2]
[313062761,1706706641683,-1692.13,0.00021064,2]
[313062762,1706706641693,-500.0,0.00021064,2]
[313062763,1706706641703,-187.41873838,0.00021064,2]
[313062764,1706706641810,-312.58126162,0.00021064,2]
[313062765,1706706641819,-520.35994778,0.00021064,2]
[313062766,1706706641829,-649.47000002,0.00021064,2]
[313062767,1706706641838,-500.0,0.00021064,2]
[313062768,1706706641847,-701.78,0.00021064,2]
[313062769,1706706641856,-500.0,0.00021064,2]
[313062770,1706706641865,-500.0,0.00021064,2]
[313062771,1706706641874,-151.0,0.00021064,2]
[313062772,1706706641883,-1401.79,0.00021064,2]
[313062773,1706706641892,-855.08,0.00021064,2]
[313062774,1706706641906,-796.2,0.00021064,2]
[313062775,1706706641921,-500.0,0.00021064,2]
[313062776,1706706641935,-500.0,0.00021064,2]
[313062777,1706706641947,-500.0,0.00021064,2]
[313062778,1706706641958,-3358.37,0.00021064,2]
[313062779,1706706641972,-500.0,0.00021064,2]
[313062780,1706706641984,-500.0,0.00021064,2]
[313062781,1706706641998,-500.0,0.00021064,2]
[313062782,1706706642012,-661.11,0.00021064,2]
[313062783,1706706642027,-500.0,0.00021064,2]
[313062784,1706706642039,-500.0,0.00021064,2]
[313062785,1706706642051,-500.0,0.00021064,2]
[313062786,1706706642064,-500.0,0.00021064,2]
[313062787,1706706642077,-977.48,0.00021064,2]
[313062788,1706706642089,-500.0,0.00021064,2]
[313062789,1706706642105,-500.0,0.00021064,2]
[313062791,1706706642118,-500.0,0.00021064,2]
[313062792,1706706642130,-500.0,0.00021064,2]
[313062794,1706706642140,-500.0,0.00021064,2]
[313062796,1706706642155,-1298.25,0.00021064,2]
[313062798,1706706642167,-5961.97,0.00021064,2]
[313062800,1706706642180,-2211.2,0.00021064,2]
[313062801,1706706642193,-1912.97,0.00021064,2]
[313062803,1706706642206,-500.0,0.00021064,2]
[313062805,1706706642219,-460.01189534,0.00021064,2]
[313062807,1706706642232,-4883.43,0.00021064,2]
[313062809,1706706642245,-4226.6,0.00021064,2]
[313062811,1706706642259,-643.8,0.00021064,2]
[313062813,1706706642272,-2799.04,0.00021064,2]
[313062815,1706706642285,-833.63,0.00021064,2]
[313062817,1706706642295,-500.0,0.00021064,2]
[313062818,1706706642305,-500.0,0.00021064,2]
[313062820,1706706642316,-500.0,0.00021064,2]
[313062821,1706706642328,-500.0,0.00021064,2]
[313062823,1706706642341,-500.0,0.00021064,2]
[313062825,1706706642352,-2515.94,0.00021064,2]
[313062826,1706706642365,-4190.91,0.00021064,2]
[313062827,1706706642377,-500.0,0.00021064,2]
[313062828,1706706642387,-631.43352032,0.00021236,2]
[313062829,1706706642397,-13072.26,0.00021326,2]
[313062830,1706706642409,-500.0,0.00021326,2]
[313062831,1706706642423,-1984.69,0.00021326,2]
[313062832,1706706642434,-7006.76351369,0.00021327,2]
[313062833,1706706642457,-386.75,0.00020516,2]
[313062872,1706706863987,11800.2726004,0.00019498,2]
[313062873,1706707125296,166.857692,0.00019222,2]
[313062874,1706707284467,155.00703967,0.00020399,2]
[313062903,1706707460705,2623.77750247,0.0003,120]
[313062904,1706707594942,155.0,0.00020449,2]
[313062905,1706707597739,155.0,0.00020449,2]
[313062906,1706707613606,495.02412602,0.00020449,2]
[313062907,1706707618209,4820.73788709,0.00020449,2]
[313062908,1706707624336,1939.79,0.0002044,3]
[313062909,1706707632226,3111.41420831,0.00020449,2]
[313062910,1706707636125,3028.66,0.0002044,3]
[313062911,1706707647536,2523.88,0.0002044,3]
[313062912,1706707659243,2103.24,0.0002044,3]
[313062913,1706707661268,2926.26840009,0.00029,30]
[313062914,1706707666248,4818.41258945,0.00020449,2]
[313062915,1706707667071,20928.42010266,0.00020449,2]
[313062916,1706707667349,2041.12977295,0.00020449,2]
[313062917,1706707667749,283.99630205,0.00020449,2]
[313062918,1706707669596,155.01085076,0.00020449,2]
[313062919,1706707670439,1752.7,0.0002044,3]
[313062920,1706707672626,904.55199849,0.00020449,2]
[313062921,1706707673044,262.41441764,0.00020449,2]
[313062922,1706707680924,556.32394673,0.00020449,2]
[313062923,1706707681682,1460.58,0.0002044,3]
[313062924,1706707686642,302.40967996,0.00020449,2]
[313062925,1706707690250,500.0,0.00020449,2]
[313062926,1706707693737,213.76447974,0.00020449,2]
[313062927,1706707712142,209341.3714256,0.00020449,2]
[313062928,1706707719212,10000.0,0.0002045,2]
[313062929,1706707733932,10000.0,0.0002,10]
[313062930,1706707745522,10000.0,0.0002,10]
[313062933,1706707754699,10000.0,0.0002,10]
[313062934,1706707762924,10000.0,0.0002,10]
[313062935,1706707770676,10000.0,0.0002,10]
[313062936,1706707778464,10000.0,0.0002,10]
[313062937,1706707787992,10000.0,0.0002,10]
[313062938,1706707791804,155.17934871,0.00020449,2]
[313062939,1706707798169,1996.50298693,0.00020449,2]
[313062940,1706707799376,10000.0,0.0002,10]
[313062941,1706707807350,10000.0,0.0002,10]
[313062942,1706707807562,788.38,0.00020449,2]
[313062943,1706707815097,10000.0,0.0002,10]
[313062944,1706707822486,10000.0,0.0002,10]
[313062945,1706707830292,10000.0,0.0002,10]
[313062980,1706707832570,-155.0,0.0002045,2]
[313062982,1706707832580,-2879.36200329,0.0002045,2]
[313062984,1706707832592,-5092.43181338,0.0002045,2]
[313062986,1706707832603,-1217.15,0.00020451,3]
[313062987,1706707832647,-1014.29,0.00020451,3]
[313062990,1706707832657,-2789.49761067,0.00020458,5]
[313062993,1706707832678,-310.08118352,0.00020459,2]
[313062995,1706707832688,-166.52761117,0.0002046,2]
[313062997,1706707832698,-1996.50298693,0.0002046,2]
[313062999,1706707832708,-200.0,0.00020461,2]
[313063001,1706707832718,-157.45609349,0.00020461,2]
[313063003,1706707832727,-258.08743898,0.00020461,2]
[313063005,1706707832737,-304.98381903,0.00020461,2]
[313063008,1706707832747,-83824.13419779,0.00020461,2]
[313063009,1706707832757,-155.03255684,0.00020462,2]
[313063011,1706707832766,-11982.9,0.00020462,2]
[313063013,1706707832777,-500.0,0.00020462,2]
[313063016,1706707832787,-1819.3,0.00020462,2]
[313063018,1706707832798,-3845.54835849,0.00020465,2]
[313063020,1706707832808,-405.87364156,0.00020479,2]
[313063022,1706707832818,-163.23906434,0.00020479,2]
[313063024,1706707832827,-500.0,0.00020479,2]
[313063025,1706707832838,-155.4829007,0.00020479,2]
[313063027,1706707832848,-480.5285985,0.0002048,2]
[313063029,1706707832857,-471.35573788,0.00020482,2]
[313063030,1706707832867,-18427.84902325,0.00020482,2]
[313063031,1706707832878,-2106.51819104,0.00020482,2]
[313063032,1706707832887,-1697.47554063,0.00020483,2]
[313063033,1706707832898,-588.5086678,0.00020483,2]
[313063034,1706707832908,-681.78,0.00020484,2]
[313063035,1706707832917,-1465.28909495,0.00020484,2]
[313063041,1706707838228,10000.0,0.0002,10]
[313063056,1706707838623,-500.0,0.0002046,2]
[313063057,1706707838634,-4333.30090505,0.00020484,2]
[313063058,1706707838643,-500.0,0.00020484,2]
[313063059,1706707838654,-1242.02,0.00020484,2]
[313063060,1706707838663,-500.0,0.00020484,2]
[313063061,1706707838673,-500.0,0.00020484,2]
[313063062,1706707838683,-14098.84891137,0.00020485,2]
[313063063,1706707838694,-14303.64693328,0.00020491,2]
[313063064,1706707838703,-161.25377487,0.00020492,2]
[313063065,1706707838714,-12386.77765309,0.00020492,2]
[313063066,1706707838723,-25076.25,0.00020492,2]
[313063067,1706707838733,-844.07,0.00020492,2]
[313063068,1706707838742,-1146.45,0.00020492,2]
[313063069,1706707838752,-500.0,0.00020492,2]
[313063070,1706707838762,-2185.13,0.00020492,2]
[313063071,1706707838773,-5626.52,0.00020492,2]
[313063072,1706707838783,-2301.26,0.00020492,2]
[313063073,1706707838792,-2030.4,0.00020492,2]
[313063074,1706707838803,-3218.44,0.00020492,2]
[313063075,1706707838812,-500.0,0.00020493,2]
[313063076,1706707838822,-939.59,0.00020493,2]
[313063077,1706707838831,-500.0,0.00020493,2]
[313063078,1706707838842,-500.0,0.00020493,2]
[313063079,1706707838851,-500.0,0.00020493,2]
[313063080,1706707838861,-500.0,0.00020493,2]
[313063081,1706707838870,-500.0,0.00020493,2]
[313063082,1706707838880,-2110.65,0.00020493,2]
[313063083,1706707838889,-500.0,0.00020493,2]
[313063084,1706707838900,-500.0,0.00020493,2]
[313063085,1706707838910,-500.0,0.00020493,2]
[313063086,1706707838921,-500.0,0.00020493,2]
[313063087,1706707838930,-672.54,0.00020493,2]
[313063088,1706707838939,-1343.38,0.00020493,2]
[313063089,1706707838949,-819.45,0.00020493,2]
[313063090,1706707838958,-500.0,0.00020493,2]
[313063091,1706707838968,-500.0,0.00020493,2]
[313063092,1706707838977,-500.0,0.00020493,2]
[313063093,1706707838987,-500.0,0.00020493,2]
[313063094,1706707838996,-500.0,0.00020493,2]
[313063095,1706707839005,-633.57,0.00020493,2]
[313063096,1706707839014,-500.0,0.00020493,2]
[313063097,1706707839024,-2228.29,0.00020493,2]
[313063098,1706707839033,-500.0,0.00020493,2]
[313063099,1706707839043,-500.0,0.00020493,2]
[313063100,1706707839052,-500.0,0.00020493,2]
[313063101,1706707839062,-500.0,0.00020493,2]
[313063102,1706707839071,-500.0,0.00020493,2]
[313063103,1706707839081,-500.0,0.00020493,2]
[313063104,1706707839090,-936.75,0.00020493,2]
[313063105,1706707839099,-500.0,0.00020493,2]
[313063106,1706707839108,-500.0,0.00020493,2]
[313063107,1706707839117,-500.0,0.00020493,2]
[313063108,1706707839126,-500.0,0.00020493,2]
[313063109,1706707839135,-1833.27,0.00020493,2]
[313063110,1706707839144,-4679.96,0.00020493,2]
[313063111,1706707839153,-5713.55,0.00020493,2]
[313063112,1706707839162,-4050.5,0.00020493,2]
[313063113,1706707839171,-2119.07,0.00020493,2]
[313063114,1706707839180,-2682.41,0.00020493,2]
[313063115,1706707839190,-500.0,0.00020493,2]
[313063116,1706707839199,-616.97,0.00020493,2]
[313063117,1706707839209,-187.69311989,0.00020493,2]
[313063118,1706707839218,-500.0,0.00020493,2]
[313063119,1706707839228,-2411.11,0.00020493,2]
[313063120,1706707839237,-500.0,0.00020493,2]
[313063121,1706707839246,-6299.347584,0.00020493,2]
[313063122,1706707839256,-316.92065111,0.00020493,2]
[313063123,1706707839265,-6299.347584,0.00020493,2]
[313063124,1706707839274,-500.0,0.00020493,2]
[313063125,1706707839283,-500.0,0.00020494,2]
[313063126,1706707839293,-500.0,0.00020494,2]
[313063127,1706707839302,-500.0,0.00020494,2]
[313063128,1706707839312,-500.0,0.00020494,2]
[313063129,1706707839322,-3675.66,0.00020494,2]
[313063130,1706707839331,-1426.94,0.00020494,2]
[313063131,1706707839340,-500.0,0.00020494,2]
[313063132,1706707839349,-169.13053665,0.00020502,2]
[313063133,1706707839358,-500.0,0.00020503,2]
[313063134,1706707839367,-500.0,0.00020503,2]
[313063135,1706707839376,-277.17028051,0.00020503,2]
[313063136,1706707839386,-629.66,0.00020503,2]
[313063137,1706707839395,-500.0,0.00020503,2]
[313063138,1706707839405,-500.0,0.00020503,2]
[313063139,1706707839415,-500.0,0.00020503,2]
[313063140,1706707839425,-500.0,0.00020503,2]
[313063141,1706707839434,-500.0,0.00020503,2]
[313063142,1706707839446,-378.57526087,0.00020503,2]
[313063143,1706707839455,-500.0,0.00020503,2]
[313063144,1706707839464,-500.0,0.00020503,2]
[313063145,1706707839473,-500.0,0.00020503,2]
[313063146,1706707839482,-1621.62,0.00020503,2]
[313063147,1706707839492,-500.0,0.00020503,2]
[313063148,1706707839502,-500.0,0.00020503,2]
[313063149,1706707839514,-500.0,0.00020503,2]
[313063150,1706707839525,-729.85,0.00020503,2]
[313063151,1706707839534,-200.0,0.00020503,2]
[313063152,1706707839543,-500.0,0.00020503,2]
[313063153,1706707839553,-500.0,0.00020503,2]
[313063154,1706707839562,-230.73943628,0.00020503,2]
[313063155,1706707839571,-500.0,0.00020503,2]
[313063156,1706707839580,-532.49556175,0.00020503,2]
[313063157,1706707839590,-1190.06,0.00020503,2]
[313063158,1706707839599,-500.0,0.00020503,2]
[313063159,1706707839608,-798.9,0.00020503,2]
[313063160,1706707839619,-500.0,0.00020503,2]
[313063161,1706707839628,-500.0,0.00020503,2]
[313063162,1706707839637,-479.01556999,0.00020503,2]
[313063163,1706707839647,-500.0,0.00020503,2]
[313063164,1706707839750,-500.0,0.00020503,2]
[313063165,1706707839760,-500.0,0.00020503,2]
[313063166,1706707839769,-500.0,0.00020503,2]
[313063167,1706707839780,-500.0,0.00020503,2]
[313063168,1706707839791,-500.0,0.00020503,2]
[313063169,1706707839801,-510.80103802,0.00020503,2]
[313063170,1706707839811,-1032.32,0.00020503,2]
[313063171,1706707839820,-4016.29,0.00020503,2]
[313063172,1706707839830,-500.0,0.00020503,2]
[313063173,1706707839839,-979.48,0.00020503,2]
[313063174,1706707839848,-500.0,0.00020503,2]
[313063175,1706707839858,-500.0,0.00020503,2]
[313063176,1706707839867,-500.0,0.00020503,2]
[313063177,1706707839876,-500.0,0.00020503,2]
[313063178,1706707839885,-1820.79,0.00020503,2]
[313063179,1706707839895,-500.0,0.00020503,2]
[313063180,1706707839904,-500.0,0.00020503,2]
[313063181,1706707839914,-500.0,0.00020503,2]
[313063182,1706707839924,-12584.25,0.00020503,2]
[313063183,1706707839932,-966.27,0.00020503,2]
[313063184,1706707839941,-1051.66,0.00020503,2]
[313063185,1706707839951,-153.915183,0.00020503,2]
[313063186,1706707839960,-151.0,0.00020503,2]
[313063187,1706707839970,-153.915183,0.00020503,2]
[313063188,1706707839979,-151.0,0.00020503,2]
[313063189,1706707839988,-18013.39,0.00020503,2]
[313063190,1706707839997,-500.0,0.00020503,2]
[313063191,1706707840006,-500.0,0.00020503,2]
[313063192,1706707840015,-500.0,0.00020503,2]
[313063193,1706707840024,-467.36530748,0.00020503,2]
[313063194,1706707840035,-500.0,0.00020503,2]
[313063195,1706707840047,-581.06,0.00020503,2]
[313063196,1706707840055,-500.0,0.00020503,2]
[313063197,1706707840064,-500.0,0.00020503,2]
[313063198,1706707840074,-500.0,0.00020503,2]
[313063199,1706707840083,-500.0,0.00020503,2]
[313063200,1706707840092,-500.0,0.00020503,2]
[313063201,1706707840101,-500.0,0.00020503,2]
[313063202,1706707840111,-500.0,0.00020503,2]
[313063203,1706707840120,-403.7780059,0.00020503,2]
[313063204,1706707840129,-500.0,0.00020503,2]
[313063205,1706707840138,-500.0,0.00020503,2]
[313063206,1706707840147,-500.0,0.00020503,2]
[313063207,1706707840156,-500.0,0.00020503,2]
[313063208,1706707840178,-500.0,0.00020503,2]
[313063209,1706707840187,-500.0,0.00020503,2]
[313063210,1706707840196,-6299.347584,0.00020503,2]
[313063211,1706707840206,-6299.347584,0.00020503,2]
[313063212,1706707840216,-500.0,0.00020503,2]
[313063213,1706707840225,-6299.347584,0.00020503,2]
[313063214,1706707840235,-6299.347584,0.00020503,2]
[313063215,1706707840245,-626.6242037,0.00020503,2]
[313063216,1706707840255,-500.0,0.00020504,2]
[313063217,1706707840265,-151.0,0.00020515,2]
[313063218,1706707840274,-151.0,0.00020515,2]
[313063219,1706707840284,-153.915183,0.00020515,2]
[313063220,1706707840295,-151.0,0.00020515,2]
[313063221,1706707840305,-153.915183,0.00020515,2]
[313063222,1706707840315,-151.0,0.00020515,2]
[313063223,1706707840325,-503.33303702,0.00020516,2]
[313063224,1706707840334,-500.0,0.00020516,2]
[313063225,1706707840344,-500.0,0.00020516,2]
[313063226,1706707840353,-1018.70225881,0.00020516,2]
[313063227,1706707840363,-500.0,0.00020516,2]
[313063228,1706707840372,-2603.4,0.00020516,2]
[313063229,1706707840381,-500.0,0.00020516,2]
[313063230,1706707840392,-500.0,0.00020516,2]
[313063231,1706707840402,-151.0,0.00020516,2]
[313063232,1706707840414,-345.642392,0.00020516,2]
[313063233,1706707840423,-345.642392,0.00020516,2]
[313063234,1706707840433,-151.0,0.00020516,2]
[313063235,1706707840444,-153.915183,0.00020516,2]
[313063236,1706707840453,-151.0,0.00020516,2]
[313063237,1706707840464,-153.915183,0.00020516,2]
[313063238,1706707840473,-151.0,0.00020516,2]
[313063239,1706707840483,-788.38,0.00020723,2]
[313063240,1706707840494,-11982.9,0.00020736,2]
[313063241,1706707840503,-500.0,0.00020736,2]
[313063242,1706707840513,-1819.3,0.00020736,2]
[313063243,1706707840522,-6299.347584,0.00020736,2]
[313063244,1706707840531,-6299.347584,0.00020736,2]
[313063245,1706707840541,-681.78,0.00020758,2]
[313063246,1706707840552,-5798.59,0.00020758,2]
[313063247,1706707840562,-500.0,0.00020758,2]
[313063248,1706707840571,-1242.02,0.00020758,2]
[313063249,1706707840581,-500.0,0.00020758,2]
[313063250,1706707840592,-500.0,0.00020758,2]
[313063251,1706707840601,-25076.25,0.00020766,2]
[313063252,1706707840610,-844.07,0.00020766,2]
[313063254,1706707840620,-1146.45,0.00020766,2]
[313063255,1706707840629,-153.915183,0.00020766,2]